[Event "Live Chess"]
[Site "Chess.com"]
[Date "2023.05.21"]
[Round "-"]
[White "KGreenGator"]
[Black "SupremeTactician"]
[Result "0-1"]
[WhiteElo "1785"]
[BlackElo "2343"]
[TimeControl "300"]
[EndTime "17:27:23 PDT"]
[Termination "SupremeTactician won by checkmate"]

1. c4 {[%clk 0:04:59]} 1... c5 {[%clk 0:04:58.4]} 2. Nc3 {[%clk 0:04:58]} 2...
Nc6 {[%clk 0:04:57.6]} 3. e4 {[%clk 0:04:56.5]} 3... g6 {[%clk 0:04:56.3]} 4.
Nf3 {[%clk 0:04:55.6]} 4... Bg7 {[%clk 0:04:55.6]} 5. a3 {[%clk 0:04:51.1]} 5...
d6 {[%clk 0:04:55]} 6. Qc2 {[%clk 0:04:49.5]} 6... Nf6 {[%clk 0:04:54.6]} 7. d3
{[%clk 0:04:48.1]} 7... Bg4 {[%clk 0:04:52.6]} 8. Be2 {[%clk 0:04:46.6]} 8...
Bxf3 {[%clk 0:04:51.4]} 9. Bxf3 {[%clk 0:04:44.4]} 9... Nd4 {[%clk 0:04:50.9]}
10. Qd1 {[%clk 0:04:43.8]} 10... O-O {[%clk 0:04:48.7]} 11. Be3 {[%clk
0:04:42.1]} 11... Nd7 {[%clk 0:04:47.7]} 12. Rb1 {[%clk 0:04:36.5]} 12... Nxf3+
{[%clk 0:04:45.5]} 13. Qxf3 {[%clk 0:04:34.7]} 13... Ne5 {[%clk 0:04:44.7]} 14.
Qe2 {[%clk 0:04:33.1]} 14... f5 {[%clk 0:04:43]} 15. exf5 {[%clk 0:04:30.5]}
15... Rxf5 {[%clk 0:04:42.9]} 16. O-O {[%clk 0:04:23.4]} 16... Qf8 {[%clk
0:04:41.3]} 17. d4 {[%clk 0:04:17.9]} 17... cxd4 {[%clk 0:04:36.9]} 18. Bxd4
{[%clk 0:04:17]} 18... Nf3+ {[%clk 0:04:36.8]} 19. gxf3 {[%clk 0:04:13.4]} 19...
Bxd4 {[%clk 0:04:36.7]} 20. Nd5 {[%clk 0:03:58.6]} 20... Re8 {[%clk 0:04:30.3]}
21. Qe6+ {[%clk 0:03:50.6]} 21... Kg7 {[%clk 0:04:28.6]} 22. f4 {[%clk
0:03:40.7]} 22... Rxd5 {[%clk 0:04:19.5]} 23. cxd5 {[%clk 0:03:37.7]} 23... Qxf4
{[%clk 0:04:19.4]} 24. Qh3 {[%clk 0:03:27.4]} 24... Qg5+ {[%clk 0:04:15.5]} 25.
Qg2 {[%clk 0:03:22.9]} 25... Qf5 {[%clk 0:04:02.2]} 26. Rfd1 {[%clk 0:03:20.6]}
26... Bc5 {[%clk 0:04:00.1]} 27. b4 {[%clk 0:03:18.1]} 27... Bb6 {[%clk
0:03:59.2]} 28. a4 {[%clk 0:03:16]} 28... Rf8 {[%clk 0:03:58]} 29. Rb2 {[%clk
0:03:11.7]} 29... Qe5 {[%clk 0:03:54.8]} 30. Rbd2 {[%clk 0:03:08]} 30... a6
{[%clk 0:03:48.9]} 31. a5 {[%clk 0:03:05.9]} 31... Ba7 {[%clk 0:03:48.1]} 32.
Qg3 {[%clk 0:02:57.3]} 32... Qh5 {[%clk 0:03:42.3]} 33. Re1 {[%clk 0:02:49.8]}
33... Rf7 {[%clk 0:03:36]} 34. Qc3+ {[%clk 0:02:45.1]} 34... Kg8 {[%clk
0:03:31.1]} 35. Qc8+ {[%clk 0:02:37.7]} 35... Kg7 {[%clk 0:03:30]} 36. Qc3+
{[%clk 0:02:34]} 36... Kh6 {[%clk 0:03:27.3]} 37. Qg3 {[%clk 0:02:20.3]} 37...
Rf3 {[%clk 0:03:24.8]} 38. Qg2 {[%clk 0:02:15.1]} 38... Rf5 {[%clk 0:03:23.9]}
39. Kh1 {[%clk 0:02:00.5]} 39... Rg5 {[%clk 0:03:19.4]} 40. Qf1 {[%clk
0:01:55.6]} 40... Qf3+ {[%clk 0:03:17.1]} 41. Qg2 {[%clk 0:01:54.1]} 41... Qxg2#
{[%clk 0:03:17]} 0-1

[Event "Live Chess"]
[Site "Chess.com"]
[Date "2023.05.21"]
[Round "-"]
[White "chessfiction"]
[Black "LL220284LL"]
[Result "1-0"]
[WhiteElo "2345"]
[BlackElo "2316"]
[TimeControl "300"]
[EndTime "17:27:36 PDT"]
[Termination "chessfiction won by resignation"]

1. e4 {[%clk 0:04:57.4]} 1... c5 {[%clk 0:04:58.2]} 2. d4 {[%clk 0:04:55.9]}
2... cxd4 {[%clk 0:04:57.2]} 3. c3 {[%clk 0:04:55.8]} 3... dxc3 {[%clk
0:04:55.9]} 4. Nxc3 {[%clk 0:04:55.7]} 4... e6 {[%clk 0:04:54.9]} 5. Nf3 {[%clk
0:04:53.8]} 5... Nc6 {[%clk 0:04:52.6]} 6. Bg5 {[%clk 0:04:52.3]} 6... Qa5
{[%clk 0:04:47.5]} 7. Bd3 {[%clk 0:04:49.8]} 7... h6 {[%clk 0:04:42.6]} 8. Bd2
{[%clk 0:04:47.7]} 8... Qh5 {[%clk 0:04:32.5]} 9. O-O {[%clk 0:04:45.6]} 9...
Nf6 {[%clk 0:04:31.2]} 10. Re1 {[%clk 0:04:42.3]} 10... Bd6 {[%clk 0:04:26.7]}
11. e5 {[%clk 0:04:37.6]} 11... Nxe5 {[%clk 0:04:09.2]} 12. Nxe5 {[%clk
0:04:36.6]} 12... Bxe5 {[%clk 0:04:05]} 13. Qxh5 {[%clk 0:04:34.5]} 13... Nxh5
{[%clk 0:04:04.5]} 14. Rxe5 {[%clk 0:04:33.6]} 14... Nf6 {[%clk 0:04:04.2]} 15.
Rae1 {[%clk 0:04:30.6]} 15... d5 {[%clk 0:04:02]} 16. Nxd5 {[%clk 0:04:28.4]}
16... Nxd5 {[%clk 0:03:58.9]} 17. Rxd5 {[%clk 0:04:28.3]} 17... Bd7 {[%clk
0:03:58.5]} 18. Bb5 {[%clk 0:04:25.9]} 18... O-O-O {[%clk 0:03:56.1]} 19. Bxd7+
{[%clk 0:04:24.6]} 19... Rxd7 {[%clk 0:03:55.1]} 20. Rxd7 {[%clk 0:04:24.4]}
20... Kxd7 {[%clk 0:03:55]} 21. Be3 {[%clk 0:04:23]} 21... b6 {[%clk 0:03:53.1]}
22. Rd1+ {[%clk 0:04:22.2]} 22... Kc6 {[%clk 0:03:52.3]} 23. Kf1 {[%clk
0:04:21.8]} 23... Kb7 {[%clk 0:03:49]} 24. Ke2 {[%clk 0:04:21.2]} 24... Kc6
{[%clk 0:03:47.4]} 25. a4 {[%clk 0:04:19.9]} 25... g5 {[%clk 0:03:46.6]} 26. b4
{[%clk 0:04:14.6]} 26... f5 {[%clk 0:03:45]} 27. b5+ {[%clk 0:04:14.1]} 27...
Kc7 {[%clk 0:03:44.1]} 28. Bd4 {[%clk 0:04:12.5]} 28... Rh7 {[%clk 0:03:42.2]}
29. Be5+ {[%clk 0:04:12]} 29... Kb7 {[%clk 0:03:41.4]} 30. Rd8 {[%clk
0:04:10.6]} 30... a6 {[%clk 0:03:40]} 31. Kd3 {[%clk 0:04:07.3]} 31... Rf7
{[%clk 0:03:37.5]} 32. Kc4 {[%clk 0:04:03.1]} 32... f4 {[%clk 0:03:36.4]} 33. f3
{[%clk 0:04:01.4]} 33... h5 {[%clk 0:03:35.3]} 34. Kd4 {[%clk 0:03:59.9]} 34...
g4 {[%clk 0:03:34.4]} 35. Ke4 {[%clk 0:03:58.8]} 35... gxf3 {[%clk 0:03:33.1]}
36. gxf3 {[%clk 0:03:58]} 36... axb5 {[%clk 0:03:31]} 37. axb5 {[%clk
0:03:56.7]} 37... Rf5 {[%clk 0:03:30.9]} 38. Rd7+ {[%clk 0:03:50.2]} 38... Ka8
{[%clk 0:03:29.3]} 39. Re7 {[%clk 0:03:47.2]} 39... Rg5 {[%clk 0:03:28.2]} 40.
Rxe6 {[%clk 0:03:44.9]} 40... Rg2 {[%clk 0:03:27.5]} 41. Bxf4 {[%clk 0:03:42.9]}
41... Re2+ {[%clk 0:03:26.4]} 42. Be3 {[%clk 0:03:42.1]} 42... Rb2 {[%clk
0:03:26.3]} 43. Rxb6 {[%clk 0:03:40.6]} 43... h4 {[%clk 0:03:24.7]} 44. Ra6+
{[%clk 0:03:38.3]} 44... Kb7 {[%clk 0:03:23.5]} 45. Ra7+ {[%clk 0:03:36.9]}
45... Kb8 {[%clk 0:03:22.5]} 46. b6 {[%clk 0:03:36.8]} 46... h3 {[%clk
0:03:21.5]} 47. Rh7 {[%clk 0:03:35.3]} 47... Rb4+ {[%clk 0:03:18.3]} 48. Bd4
{[%clk 0:03:34.6]} 48... Rb5 {[%clk 0:03:13.9]} 49. Rxh3 {[%clk 0:03:33.4]}
49... Rg5 {[%clk 0:03:10.8]} 50. Rg3 {[%clk 0:03:32.3]} 50... Rh5 {[%clk
0:03:09.3]} 51. Rg7 {[%clk 0:03:30.4]} 51... Rh4+ {[%clk 0:03:07.3]} 52. Kd5
{[%clk 0:03:27.4]} 52... Rh5+ {[%clk 0:03:04.4]} 53. Be5+ {[%clk 0:03:26.4]} 1-0

[Event "Live Chess"]
[Site "Chess.com"]
[Date "2023.05.21"]
[Round "-"]
[White "raminguy"]
[Black "EdenHazard8"]
[Result "0-1"]
[WhiteElo "1944"]
[BlackElo "2002"]
[TimeControl "300"]
[EndTime "17:28:10 PDT"]
[Termination "EdenHazard8 won by resignation"]

1. d4 {[%clk 0:04:59.2]} 1... Nf6 {[%clk 0:04:58.7]} 2. Nc3 {[%clk 0:04:58.6]}
2... g6 {[%clk 0:04:58]} 3. Bf4 {[%clk 0:04:57.2]} 3... Bg7 {[%clk 0:04:57]} 4.
Qd2 {[%clk 0:04:56.7]} 4... d6 {[%clk 0:04:55.8]} 5. O-O-O {[%clk 0:04:55.4]}
5... Nbd7 {[%clk 0:04:54.4]} 6. d5 {[%clk 0:04:53.4]} 6... O-O {[%clk
0:04:53.2]} 7. Bh6 {[%clk 0:04:50]} 7... Ng4 {[%clk 0:04:51.4]} 8. Bxg7 {[%clk
0:04:47.6]} 8... Kxg7 {[%clk 0:04:51.3]} 9. e4 {[%clk 0:04:45.1]} 9... a5 {[%clk
0:04:47.7]} 10. f3 {[%clk 0:04:44.2]} 10... Ngf6 {[%clk 0:04:46.1]} 11. h4
{[%clk 0:04:43.7]} 11... Ne5 {[%clk 0:04:41.9]} 12. Be2 {[%clk 0:04:38]} 12...
h5 {[%clk 0:04:38.1]} 13. g4 {[%clk 0:04:35.8]} 13... hxg4 {[%clk 0:04:37.1]}
14. fxg4 {[%clk 0:04:34.7]} 14... Bxg4 {[%clk 0:04:34.1]} 15. Bxg4 {[%clk
0:04:29.5]} 15... Nexg4 {[%clk 0:04:28.1]} 16. h5 {[%clk 0:04:15.4]} 16... Rh8
{[%clk 0:04:26.5]} 17. Nf3 {[%clk 0:04:09.2]} 17... Rxh5 {[%clk 0:04:22.8]} 18.
Rxh5 {[%clk 0:04:07]} 18... Nxh5 {[%clk 0:04:22.7]} 19. Rg1 {[%clk 0:04:04.1]}
19... Nhf6 {[%clk 0:04:15.5]} 20. Qg5 {[%clk 0:03:48.4]} 20... Qd7 {[%clk
0:04:13.6]} 21. Nd4 {[%clk 0:03:32.1]} 21... Rh8 {[%clk 0:03:53.3]} 22. Nf5+
{[%clk 0:03:18.5]} 22... Kf8 {[%clk 0:03:44.1]} 23. Nh4 {[%clk 0:02:40]} 23...
Rh5 {[%clk 0:03:36.1]} 24. Nxg6+ {[%clk 0:02:25.4]} 24... fxg6 {[%clk 0:03:36]}
25. Qxg6 {[%clk 0:02:24]} 25... Qe8 {[%clk 0:03:08.4]} 0-1

[Event "Live Chess"]
[Site "Chess.com"]
[Date "2023.05.21"]
[Round "-"]
[White "laminaaprod"]
[Black "GEMdzq"]
[Result "0-1"]
[WhiteElo "2230"]
[BlackElo "2269"]
[TimeControl "300"]
[EndTime "17:28:35 PDT"]
[Termination "GEMdzq won by resignation"]

1. d4 {[%clk 0:04:54.4]} 1... Nf6 {[%clk 0:04:58.6]} 2. c4 {[%clk 0:04:47.5]}
2... e6 {[%clk 0:04:57.5]} 3. Nf3 {[%clk 0:04:46.8]} 3... c5 {[%clk 0:04:56.3]}
4. d5 {[%clk 0:04:42.8]} 4... exd5 {[%clk 0:04:55.6]} 5. cxd5 {[%clk 0:04:42.7]}
5... d6 {[%clk 0:04:55.1]} 6. Nc3 {[%clk 0:04:42.2]} 6... g6 {[%clk 0:04:54.7]}
7. e4 {[%clk 0:04:37.6]} 7... Bg7 {[%clk 0:04:54.1]} 8. Bd3 {[%clk 0:04:36.1]}
8... O-O {[%clk 0:04:52]} 9. O-O {[%clk 0:04:35.1]} 9... Nbd7 {[%clk 0:04:43.9]}
10. Bf4 {[%clk 0:04:29.6]} 10... Qe7 {[%clk 0:04:34.5]} 11. Nb5 {[%clk
0:04:21.7]} 11... Ne8 {[%clk 0:04:32.8]} 12. Qc2 {[%clk 0:04:15.2]} 12... a6
{[%clk 0:04:29.3]} 13. Nc3 {[%clk 0:04:14.5]} 13... b5 {[%clk 0:04:28.1]} 14.
Rfe1 {[%clk 0:04:12.1]} 14... c4 {[%clk 0:04:21.5]} 15. Bf1 {[%clk 0:04:06.3]}
15... Ne5 {[%clk 0:04:13.7]} 16. Nxe5 {[%clk 0:04:04.4]} 16... Bxe5 {[%clk
0:04:12.6]} 17. Bxe5 {[%clk 0:04:03.8]} 17... Qxe5 {[%clk 0:04:12.4]} 18. Qd2
{[%clk 0:03:59.4]} 18... Bd7 {[%clk 0:04:02.2]} 19. f4 {[%clk 0:03:41.7]} 19...
Qe7 {[%clk 0:03:58.7]} 20. e5 {[%clk 0:03:34.4]} 20... Bf5 {[%clk 0:03:48.8]}
21. Qd4 {[%clk 0:03:23.5]} 21... Nc7 {[%clk 0:03:35.9]} 22. Ne2 {[%clk
0:03:06.5]} 22... Rfd8 {[%clk 0:03:28.4]} 23. Ng3 {[%clk 0:03:04.9]} 23... dxe5
{[%clk 0:03:03.6]} 24. Nxf5 {[%clk 0:03:03.6]} 24... gxf5 {[%clk 0:02:56.6]} 25.
Rxe5 {[%clk 0:03:02.1]} 25... Qf6 {[%clk 0:02:48.2]} 26. Rd1 {[%clk 0:02:41.4]}
26... Rd6 {[%clk 0:02:43.5]} 27. Be2 {[%clk 0:02:16.4]} 27... Rad8 {[%clk
0:02:39.5]} 28. Bf3 {[%clk 0:02:15.7]} 28... Ne6 {[%clk 0:02:27.7]} 29. Qe3
{[%clk 0:01:24.9]} 29... Nf8 {[%clk 0:02:03.7]} 30. Re8 {[%clk 0:01:16.2]} 30...
Kg7 {[%clk 0:01:52]} 31. Rxd8 {[%clk 0:01:14.1]} 31... Rxd8 {[%clk 0:01:46.5]}
32. Qc5 {[%clk 0:01:04.5]} 32... Rd6 {[%clk 0:01:33.4]} 33. Qf2 {[%clk
0:01:01.2]} 33... Nd7 {[%clk 0:01:28.8]} 34. Re1 {[%clk 0:00:53.4]} 34... Nb6
{[%clk 0:01:23.1]} 35. Qc5 {[%clk 0:00:44.7]} 35... Nd7 {[%clk 0:01:19.2]} 36.
Qc7 {[%clk 0:00:41.7]} 36... Nb6 {[%clk 0:01:07.6]} 37. Qc5 {[%clk 0:00:33]}
37... Na4 {[%clk 0:01:04.8]} 38. Qc8 {[%clk 0:00:28.3]} 38... Rd8 {[%clk
0:00:58.5]} 39. Qc6 {[%clk 0:00:24.1]} 39... Nxb2 {[%clk 0:00:54.6]} 40. Qc7
{[%clk 0:00:19.6]} 40... Nd3 {[%clk 0:00:51.3]} 41. Rd1 {[%clk 0:00:16.6]} 41...
Qd4+ {[%clk 0:00:46.6]} 0-1

[Event "Live Chess"]
[Site "Chess.com"]
[Date "2023.05.21"]
[Round "-"]
[White "Tushinskiy"]
[Black "CheckThis4"]
[Result "0-1"]
[WhiteElo "2166"]
[BlackElo "2527"]
[TimeControl "300"]
[EndTime "17:28:47 PDT"]
[Termination "CheckThis4 won by resignation"]

1. d4 {[%clk 0:04:58.4]} 1... Nf6 {[%clk 0:04:57.5]} 2. c3 {[%clk 0:04:58.3]}
2... d5 {[%clk 0:04:53.7]} 3. Nf3 {[%clk 0:04:58.2]} 3... Bf5 {[%clk 0:04:50.4]}
4. Bf4 {[%clk 0:04:57.2]} 4... e6 {[%clk 0:04:47.7]} 5. Nbd2 {[%clk 0:04:56.5]}
5... Bd6 {[%clk 0:04:46.4]} 6. Bg3 {[%clk 0:04:55.9]} 6... O-O {[%clk 0:04:45]}
7. e3 {[%clk 0:04:54.6]} 7... c5 {[%clk 0:04:44]} 8. Be2 {[%clk 0:04:53.6]} 8...
Nc6 {[%clk 0:04:43.3]} 9. O-O {[%clk 0:04:53]} 9... Rc8 {[%clk 0:04:42.5]} 10.
Re1 {[%clk 0:04:50.8]} 10... h6 {[%clk 0:04:41.4]} 11. Ne5 {[%clk 0:04:49.2]}
11... Qc7 {[%clk 0:04:34.7]} 12. f4 {[%clk 0:04:46]} 12... Ne4 {[%clk 0:04:29]}
13. Nxe4 {[%clk 0:04:44.6]} 13... Bxe4 {[%clk 0:04:28.9]} 14. Bd3 {[%clk
0:04:43]} 14... Bxd3 {[%clk 0:04:26.2]} 15. Qxd3 {[%clk 0:04:34.8]} 15... Ne7
{[%clk 0:04:22.8]} 16. Rad1 {[%clk 0:04:29.7]} 16... f6 {[%clk 0:04:21]} 17. Nf3
{[%clk 0:04:25]} 17... c4 {[%clk 0:04:18.9]} 18. Qe2 {[%clk 0:04:22.3]} 18... f5
{[%clk 0:04:17.1]} 19. Kh1 {[%clk 0:04:18.4]} 19... b5 {[%clk 0:04:13]} 20. Rg1
{[%clk 0:04:16.9]} 20... b4 {[%clk 0:04:06.5]} 21. Bh4 {[%clk 0:04:14.9]} 21...
Ng6 {[%clk 0:04:05.7]} 22. g4 {[%clk 0:04:13.6]} 22... fxg4 {[%clk 0:03:52.4]}
23. Rxg4 {[%clk 0:04:11.4]} 23... Nxh4 {[%clk 0:03:51.1]} 24. Nxh4 {[%clk
0:04:09.8]} 24... bxc3 {[%clk 0:03:48.2]} 25. bxc3 {[%clk 0:04:08.5]} 25... Rb8
{[%clk 0:03:46.4]} 26. Rdg1 {[%clk 0:04:07.1]} 26... Rf7 {[%clk 0:03:45.7]} 27.
Qg2 {[%clk 0:03:57.4]} 27... Qe7 {[%clk 0:03:39.1]} 28. f5 {[%clk 0:03:51.2]}
28... Rb7 {[%clk 0:03:35]} 29. Ng6 {[%clk 0:03:24]} 29... Qf6 {[%clk 0:03:30.7]}
30. fxe6 {[%clk 0:03:22.2]} 30... Qxe6 {[%clk 0:03:27.5]} 31. Qh3 {[%clk
0:03:10.7]} 31... Rb2 {[%clk 0:03:18.3]} 32. Ne5 {[%clk 0:02:59.9]} 32... Kf8
{[%clk 0:02:01.3]} 33. Rf1 {[%clk 0:02:30.9]} 33... Bxe5 {[%clk 0:01:52.3]} 34.
Rxf7+ {[%clk 0:02:26.5]} 34... Qxf7 {[%clk 0:01:20]} 35. dxe5 {[%clk 0:02:20.5]}
35... Kg8 {[%clk 0:01:18.9]} 36. Rf4 {[%clk 0:02:16.9]} 36... Qg6 {[%clk
0:01:16.4]} 37. Qc8+ {[%clk 0:02:01.9]} 37... Kh7 {[%clk 0:01:14.7]} 38. Qf5
{[%clk 0:02:01.4]} 38... Rb1+ {[%clk 0:01:12.2]} 39. Qxb1 {[%clk 0:01:57.9]}
39... Qxb1+ {[%clk 0:01:11]} 40. Kg2 {[%clk 0:01:57.5]} 40... Qxa2+ {[%clk
0:01:10.2]} 41. Kf3 {[%clk 0:01:54.9]} 41... Qa6 {[%clk 0:01:04.3]} 42. Rd4
{[%clk 0:01:52.5]} 42... Qe6 {[%clk 0:01:02.1]} 43. Kf4 {[%clk 0:01:50.9]} 43...
g5+ {[%clk 0:01:00.6]} 44. Kf3 {[%clk 0:01:49.3]} 44... Qxe5 {[%clk 0:01:00]}
45. e4 {[%clk 0:01:47.7]} 45... dxe4+ {[%clk 0:00:58.4]} 46. Rxe4 {[%clk
0:01:46.9]} 46... Qxc3+ {[%clk 0:00:57.1]} 0-1

[Event "Live Chess"]
[Site "Chess.com"]
[Date "2023.05.21"]
[Round "-"]
[White "Missedidea"]
[Black "Olisingapore"]
[Result "1-0"]
[WhiteElo "1820"]
[BlackElo "1805"]
[TimeControl "300"]
[EndTime "17:29:03 PDT"]
[Termination "Missedidea won by resignation"]

1. d4 {[%clk 0:04:58.7]} 1... Nf6 {[%clk 0:04:58.9]} 2. c4 {[%clk 0:04:57.6]}
2... e6 {[%clk 0:04:57.9]} 3. Nc3 {[%clk 0:04:56.3]} 3... Bb4 {[%clk 0:04:57.5]}
4. e3 {[%clk 0:04:55.4]} 4... c5 {[%clk 0:04:57]} 5. Bd3 {[%clk 0:04:53.7]} 5...
Nc6 {[%clk 0:04:56.6]} 6. Nf3 {[%clk 0:04:52.7]} 6... d6 {[%clk 0:04:56.2]} 7.
O-O {[%clk 0:04:50.7]} 7... O-O {[%clk 0:04:55]} 8. a3 {[%clk 0:04:48.1]} 8...
Bxc3 {[%clk 0:04:53.8]} 9. bxc3 {[%clk 0:04:47.3]} 9... b6 {[%clk 0:04:51.8]}
10. e4 {[%clk 0:04:45.2]} 10... e5 {[%clk 0:04:49.6]} 11. Bg5 {[%clk 0:04:42.5]}
11... cxd4 {[%clk 0:04:42.6]} 12. cxd4 {[%clk 0:04:40.7]} 12... exd4 {[%clk
0:04:42.5]} 13. Re1 {[%clk 0:04:35.4]} 13... h6 {[%clk 0:04:40.6]} 14. Bh4
{[%clk 0:04:32.2]} 14... Re8 {[%clk 0:04:40.2]} 15. Bc2 {[%clk 0:04:23.7]} 15...
Ba6 {[%clk 0:04:11.8]} 16. Nxd4 {[%clk 0:04:21.3]} 16... Nxd4 {[%clk 0:04:10.6]}
17. Qxd4 {[%clk 0:04:19.4]} 17... Rc8 {[%clk 0:04:06.2]} 18. Bd3 {[%clk
0:04:15.9]} 18... g5 {[%clk 0:03:47.4]} 19. Bg3 {[%clk 0:04:14.1]} 19... Re6
{[%clk 0:03:32]} 20. f3 {[%clk 0:04:05.3]} 20... Nh5 {[%clk 0:03:26]} 21. Bf2
{[%clk 0:04:00.3]} 21... Qf6 {[%clk 0:03:23.3]} 22. Qxf6 {[%clk 0:03:51.8]}
22... Nxf6 {[%clk 0:03:23.1]} 23. Rac1 {[%clk 0:03:47.8]} 23... Rc6 {[%clk
0:03:07.9]} 24. Rc3 {[%clk 0:03:36.8]} 24... Nd7 {[%clk 0:03:05.1]} 25. Rec1
{[%clk 0:03:30.2]} 25... Re8 {[%clk 0:03:00.4]} 26. h4 {[%clk 0:03:21.7]} 26...
Rec8 {[%clk 0:02:58.1]} 27. hxg5 {[%clk 0:03:17.5]} 27... hxg5 {[%clk
0:02:51.5]} 28. Be3 {[%clk 0:03:14.6]} 28... f6 {[%clk 0:02:49.7]} 29. Bd4
{[%clk 0:02:59]} 29... Ne5 {[%clk 0:02:46.3]} 30. Bxe5 {[%clk 0:02:47.1]} 30...
fxe5 {[%clk 0:02:46.2]} 31. Bf1 {[%clk 0:02:44.5]} 31... b5 {[%clk 0:02:40.7]}
32. Kf2 {[%clk 0:02:39.4]} 32... bxc4 {[%clk 0:02:39.9]} 33. Ke3 {[%clk
0:02:36.2]} 33... Kf7 {[%clk 0:02:39.3]} 34. Be2 {[%clk 0:02:33.8]} 34... Kf6
{[%clk 0:02:38.3]} 35. Rh1 {[%clk 0:02:31.8]} 35... Kg6 {[%clk 0:02:35.6]} 36.
g4 {[%clk 0:02:27.3]} 36... Rb6 {[%clk 0:02:28.6]} 37. Bd1 {[%clk 0:02:18.3]}
37... Bb5 {[%clk 0:02:06.1]} 38. Bc2 {[%clk 0:02:07]} 38... Bd7 {[%clk 0:01:59]}
39. Rh5 {[%clk 0:01:58.4]} 39... Be6 {[%clk 0:01:52.8]} 40. a4 {[%clk
0:01:50.8]} 40... Rb2 {[%clk 0:01:48.6]} 41. Kd2 {[%clk 0:01:40.9]} 41... d5
{[%clk 0:01:46.2]} 42. exd5+ {[%clk 0:01:35.7]} 42... Kf6 {[%clk 0:01:43.4]} 43.
dxe6 {[%clk 0:01:30.2]} 43... Rd8+ {[%clk 0:01:41.1]} 44. Kc1 {[%clk 0:01:28.1]}
44... Ra2 {[%clk 0:01:30.4]} 45. Rxc4 {[%clk 0:01:25.8]} 1-0

[Event "Live Chess"]
[Site "Chess.com"]
[Date "2023.05.21"]
[Round "-"]
[White "manthanit"]
[Black "smoggyrabbit"]
[Result "1-0"]
[WhiteElo "1060"]
[BlackElo "1737"]
[TimeControl "300"]
[EndTime "17:29:08 PDT"]
[Termination "manthanit won on time"]

1. e4 {[%clk 0:04:59]} 1... e6 {[%clk 0:04:59.3]} 2. Nf3 {[%clk 0:04:58.5]} 2...
d5 {[%clk 0:04:58.4]} 3. exd5 {[%clk 0:04:57.8]} 3... exd5 {[%clk 0:04:57.5]} 4.
Nc3 {[%clk 0:04:56.2]} 4... c6 {[%clk 0:04:56.2]} 5. d4 {[%clk 0:04:55.2]} 5...
Bd6 {[%clk 0:04:55.4]} 6. h3 {[%clk 0:04:53.8]} 6... Ne7 {[%clk 0:04:54.6]} 7.
Nd2 {[%clk 0:04:48.5]} 7... O-O {[%clk 0:04:53.3]} 8. Ne2 {[%clk 0:04:47.7]}
8... Bf5 {[%clk 0:04:44.4]} 9. g3 {[%clk 0:04:43.8]} 9... Nd7 {[%clk 0:04:40.3]}
10. Bg2 {[%clk 0:04:42.9]} 10... Nf6 {[%clk 0:04:39.1]} 11. c4 {[%clk
0:04:38.6]} 11... Re8 {[%clk 0:04:21.4]} 12. O-O {[%clk 0:04:34.9]} 12... Ng6
{[%clk 0:04:16.7]} 13. cxd5 {[%clk 0:04:33.5]} 13... cxd5 {[%clk 0:04:14.6]} 14.
Nf3 {[%clk 0:04:21.6]} 14... Qd7 {[%clk 0:04:00.3]} 15. Kh2 {[%clk 0:04:15.3]}
15... Rac8 {[%clk 0:03:49.9]} 16. Bg5 {[%clk 0:04:06.8]} 16... Ne4 {[%clk
0:03:43.3]} 17. Ne5 {[%clk 0:03:51.3]} 17... Bxe5 {[%clk 0:03:39.2]} 18. dxe5
{[%clk 0:03:49.4]} 18... Nxg5 {[%clk 0:03:37.8]} 19. Ng1 {[%clk 0:03:18.9]}
19... Rc2 {[%clk 0:02:13.3]} 20. b3 {[%clk 0:02:54.9]} 20... Rec8 {[%clk
0:01:22.5]} 21. Qh5 {[%clk 0:02:44.3]} 21... Ne4 {[%clk 0:01:01.1]} 22. Nf3
{[%clk 0:02:17.8]} 22... Rxf2 {[%clk 0:00:32.5]} 23. Rxf2 {[%clk 0:02:11.5]}
23... Nxf2 {[%clk 0:00:29]} 24. Ng5 {[%clk 0:02:09.2]} 24... h6 {[%clk
0:00:24.8]} 25. Qe2 {[%clk 0:01:52.4]} 25... Rc2 {[%clk 0:00:17.8]} 26. Qxc2
{[%clk 0:01:39.1]} 26... Bxc2 {[%clk 0:00:16.5]} 27. Rc1 {[%clk 0:01:37.6]}
27... Bf5 {[%clk 0:00:15]} 28. Rc2 {[%clk 0:01:34.5]} 28... hxg5 {[%clk
0:00:13.9]} 29. Rxf2 {[%clk 0:01:32.7]} 29... Be4 {[%clk 0:00:12.5]} 30. Rd2
{[%clk 0:01:25.9]} 30... Bxg2 {[%clk 0:00:10.4]} 31. Kxg2 {[%clk 0:01:24.7]}
31... Nxe5 {[%clk 0:00:09.6]} 32. Re2 {[%clk 0:01:14.6]} 32... Qf5 {[%clk
0:00:08.5]} 33. Rf2 {[%clk 0:01:13.6]} 33... Qe4+ {[%clk 0:00:07.6]} 34. Kg1
{[%clk 0:01:12.3]} 34... Nf3+ {[%clk 0:00:06.6]} 35. Kf1 {[%clk 0:01:07.9]}
35... Qd3+ {[%clk 0:00:03.6]} 36. Kg2 {[%clk 0:01:06.3]} 36... Ne5 {[%clk
0:00:03.3]} 37. Kg1 {[%clk 0:01:01.2]} 37... Qc3 {[%clk 0:00:03.2]} 38. Kh2
{[%clk 0:00:58.3]} 38... d4 {[%clk 0:00:03.1]} 39. Re2 {[%clk 0:00:55.5]} 39...
d3 {[%clk 0:00:03]} 40. Rxe5 {[%clk 0:00:54.3]} 40... d2 {[%clk 0:00:02.9]} 41.
Re8+ {[%clk 0:00:52.7]} 41... Kh7 {[%clk 0:00:01.6]} 42. h4 {[%clk 0:00:50.2]}
42... d1=Q {[%clk 0:00:01.5]} 43. Kh3 {[%clk 0:00:48.7]} 43... Qcf3 {[%clk
0:00:01.2]} 44. Rh8+ {[%clk 0:00:45.5]} 44... Kg6 {[%clk 0:00:00.6]} 45. h5+
{[%clk 0:00:43]} 1-0

[Event "Live Chess"]
[Site "Chess.com"]
[Date "2023.05.21"]
[Round "-"]
[White "Jo1ts"]
[Black "JoshMcK"]
[Result "0-1"]
[WhiteElo "801"]
[BlackElo "1541"]
[TimeControl "300"]
[EndTime "17:29:13 PDT"]
[Termination "JoshMcK won by checkmate"]

1. d4 {[%clk 0:04:57.6]} 1... d5 {[%clk 0:04:58.4]} 2. Bf4 {[%clk 0:04:56.3]}
2... Nf6 {[%clk 0:04:56.6]} 3. Nf3 {[%clk 0:04:55.4]} 3... e6 {[%clk 0:04:55.8]}
4. e3 {[%clk 0:04:54.4]} 4... Bd6 {[%clk 0:04:55.3]} 5. Bg3 {[%clk 0:04:52.6]}
5... O-O {[%clk 0:04:53.8]} 6. Nbd2 {[%clk 0:04:48.4]} 6... c5 {[%clk 0:04:53]}
7. c3 {[%clk 0:04:45.7]} 7... Qc7 {[%clk 0:04:51.2]} 8. Bd3 {[%clk 0:04:21.2]}
8... cxd4 {[%clk 0:04:37.8]} 9. cxd4 {[%clk 0:04:17.5]} 9... Nc6 {[%clk
0:04:37.1]} 10. Qc2 {[%clk 0:04:14]} 10... Bxg3 {[%clk 0:04:29.7]} 11. hxg3
{[%clk 0:04:12.2]} 11... h6 {[%clk 0:04:29.1]} 12. e4 {[%clk 0:03:55.7]} 12...
dxe4 {[%clk 0:04:25.3]} 13. Nxe4 {[%clk 0:03:55.6]} 13... Nxe4 {[%clk
0:04:20.8]} 14. Bxe4 {[%clk 0:03:54.1]} 14... Bd7 {[%clk 0:04:19.9]} 15. Qe2
{[%clk 0:03:09.3]} 15... Qb6 {[%clk 0:04:12.4]} 16. Ng5 {[%clk 0:03:01.9]} 16...
Nxd4 {[%clk 0:04:02.5]} 17. Qd1 {[%clk 0:02:54.3]} 17... Bb5 {[%clk 0:03:56.6]}
18. Bh7+ {[%clk 0:01:57.5]} 18... Kh8 {[%clk 0:03:53.9]} 19. Be4 {[%clk
0:01:43.6]} 19... Rac8 {[%clk 0:03:49.6]} 20. Rc1 {[%clk 0:01:28.4]} 20... Rxc1
{[%clk 0:03:43.2]} 21. Qxc1 {[%clk 0:01:28.3]} 21... Qa5+ {[%clk 0:03:37.3]} 22.
Kd1 {[%clk 0:01:19.7]} 22... Be2# {[%clk 0:03:31.6]} 0-1